bitfinex/quotes_BTCUSD_20240607
["timestamp","ask_amount","ask_price","bid_price","bid_amount"]
[1717777447922,0.15607893,71195.0,71194.0,0.37937719]
[1717777448153,0.15607893,71195.0,71194.0,0.37943176]
[1717777448358,0.15607893,71195.0,71194.0,0.37843176]
[1717777448769,0.15607893,71195.0,71194.0,0.37943176]
[1717777449332,0.15607893,71195.0,71194.0,0.37843176]
[1717777449504,0.15607893,71195.0,71194.0,0.15983205]
[1717777449661,0.15607893,71195.0,71194.0,0.18179741]
[1717777449863,0.15607893,71195.0,71194.0,0.40039712]
[1717777450066,0.15607893,71195.0,71194.0,0.18179741]
[1717777450268,0.15607893,71195.0,71194.0,0.16083205]
[1717777451123,0.15607893,71195.0,71194.0,0.15983205]
[1717777451495,0.15607893,71195.0,71194.0,0.16083205]
[1717777451918,0.15607893,71195.0,71194.0,0.15983205]
[1717777452349,0.15607893,71195.0,71194.0,0.16083205]
[1717777454745,0.15607893,71195.0,71194.0,0.15983205]
[1717777455086,0.15607893,71195.0,71194.0,0.16083205]
[1717777456280,0.15607893,71195.0,71194.0,0.21083205]
[1717777456537,0.15607893,71195.0,71194.0,0.20983205]
[1717777457725,0.15607893,71195.0,71194.0,0.20984149]
[1717777458084,0.15607893,71195.0,71194.0,0.21084149]
[1717777458501,0.15607893,71195.0,71194.0,0.20984149]
[1717777459553,0.15607893,71195.0,71194.0,0.21084149]
[1717777459964,1.44397893,71195.0,71194.0,0.21084149]
[1717777461127,1.43397893,71195.0,71194.0,0.21084149]
[1717777461330,1.43397893,71195.0,71194.0,0.20984149]
[1717777461331,1.49447893,71195.0,71194.0,0.20984149]
[1717777461559,1.49447893,71195.0,71194.0,0.45124149]
[1717777461560,1.43317893,71195.0,71194.0,0.45124149]
[1717777461732,1.43317893,71195.0,71194.0,0.59270249]
[1717777462142,1.43317893,71195.0,71194.0,0.59170249]
[1717777462462,1.43317893,71195.0,71194.0,0.81131636]
[1717777462824,1.43317893,71195.0,71194.0,0.59270249]
[1717777463044,1.43317893,71195.0,71194.0,0.81031636]
[1717777463913,1.43317893,71195.0,71194.0,0.59170249]
[1717777464042,1.43317893,71195.0,71194.0,0.44595991]
[1717777464248,1.43317893,71195.0,71194.0,0.82027134]
[1717777464489,1.43317893,71195.0,71194.0,0.82127134]
[1717777465095,1.43317893,71195.0,71194.0,0.81027134]
[1717777465667,1.43317893,71195.0,71194.0,0.81127134]
[1717777465868,1.43317893,71195.0,71194.0,0.82127134]
[1717777466129,1.43317893,71195.0,71194.0,0.81127134]
[1717777467377,1.43317893,71195.0,71194.0,0.81127181]
[1717777469043,1.43317893,71195.0,71194.0,0.81422923]
[1717777469464,1.28876,71195.0,71194.0,0.80142923]
[1717777470760,1.28876,71195.0,71194.0,1.15337585]
[1717777471135,1.28876,71195.0,71194.0,1.09287585]
[1717777471565,1.28876,71195.0,71194.0,1.09187585]
[1717777471983,1.28876,71195.0,71194.0,1.09287585]
[1717777472574,1.28876,71195.0,71194.0,1.09187585]
[1717777472776,1.28876,71195.0,71194.0,1.09287585]
[1717777472953,1.28876,71195.0,71194.0,1.43429785]
[1717777473168,1.28876,71195.0,71194.0,1.11181458]
[1717777473376,1.28876,71195.0,71194.0,1.43426555]
[1717777473744,1.28876,71195.0,71194.0,1.49700294]
[1717777473983,1.28876,71195.0,71194.0,1.49600294]
[1717777474328,1.28876,71195.0,71194.0,1.49599166]
[1717777474956,1.28876,71195.0,71194.0,1.43325427]
[1717777475158,1.28876,71195.0,71194.0,1.43225427]
[1717777475361,1.28876,71195.0,71194.0,1.14080765]
[1717777475509,1.28876,71195.0,71194.0,1.14180765]
[1717777475715,1.28876,71195.0,71194.0,1.43322256]
[1717777476336,1.28876,71195.0,71194.0,1.45322256]
[1717777476901,1.28876,71195.0,71194.0,1.53684873]
[1717777477178,1.28876,71195.0,71194.0,1.7341399]
[1717777477413,1.28876,71195.0,71194.0,1.81776849]
[1717777477628,1.28876,71195.0,71194.0,1.7341399]
[1717777480045,1.28876,71195.0,71194.0,1.8341399]
[1717777480602,1.28876,71195.0,71194.0,1.8514172]
[1717777481270,1.28876,71195.0,71194.0,1.8314172]
[1717777483239,1.28876,71195.0,71194.0,1.8514172]
[1717777483455,1.28876,71195.0,71194.0,1.8314172]
[1717777483653,1.28876,71195.0,71194.0,1.8514172]
[1717777483883,1.28876,71195.0,71194.0,1.8314172]
[1717777485379,1.28876,71195.0,71194.0,1.7909172]
[1717777485579,1.28876,71195.0,71194.0,1.8514172]
[1717777486423,1.28876,71195.0,71194.0,1.8314172]
[1717777486619,1.28876,71195.0,71194.0,1.8514172]
[1717777486845,1.28876,71195.0,71194.0,1.8314172]
[1717777487254,1.28876,71195.0,71194.0,1.8323632]
[1717777487858,1.28876,71195.0,71194.0,1.8523632]
[1717777488060,1.28876,71195.0,71194.0,1.8323632]
[1717777488495,1.28876,71195.0,71194.0,1.7718632]
[1717777488667,1.28876,71195.0,71194.0,1.5432632]
[1717777489369,1.28876,71195.0,71194.0,1.62684307]
[1717777490854,1.28876,71195.0,71194.0,1.62684342]
[1717777491777,1.28876,71195.0,71194.0,1.58505726]
[1717777492178,1.28876,71195.0,71194.0,1.58405726]
[1717777492390,1.28876,71195.0,71194.0,1.54227599]
[1717777492587,1.28876,71195.0,71194.0,1.54327599]
[1717777492789,1.28841181,71195.0,71194.0,1.54327599]
[1717777493403,1.28841181,71195.0,71194.0,1.58507109]
[1717777494311,1.28841181,71195.0,71194.0,1.58407109]
[1717777494505,1.28841181,71195.0,71194.0,1.58507109]
[1717777496245,1.28841181,71195.0,71194.0,1.70077599]
[1717777496812,1.28841181,71195.0,71194.0,1.76346837]
[1717777497367,1.28841181,71195.0,71194.0,1.76246837]
[1717777497753,1.28841181,71195.0,71194.0,1.76346837]
[1717777498340,1.28841181,71195.0,71194.0,1.76247182]
[1717777498830,1.28841181,71195.0,71194.0,1.76347182]
[1717777499658,1.28841181,71195.0,71194.0,1.82397182]
[1717777500295,1.28841181,71195.0,71194.0,1.90547182]
[1717777500638,1.28841181,71195.0,71194.0,1.84277944]
[1717777500785,1.28841181,71195.0,71194.0,1.84177944]
[1717777500985,1.28841181,71195.0,71194.0,1.84177304]
[1717777501229,1.28841181,71195.0,71194.0,1.78227304]
[1717777501734,1.28841181,71195.0,71194.0,1.78127304]
[1717777501931,1.28841181,71195.0,71194.0,1.78227304]
[1717777502132,1.28841181,71195.0,71194.0,2.06319504]
[1717777503407,1.28841181,71195.0,71194.0,2.1468045]
[1717777503835,1.28841181,71195.0,71194.0,2.1458045]
[1717777504058,1.28813104,71195.0,71194.0,2.1458045]
[1717777504272,1.28813104,71195.0,71194.0,2.1468045]
[1717777504666,1.28813104,71195.0,71194.0,2.14684579]
[1717777504862,1.28813104,71195.0,71194.0,2.14584579]
[1717777505028,1.28813104,71195.0,71194.0,2.14584877]
[1717777505224,1.28813104,71195.0,71194.0,2.06319504]
[1717777505893,1.28813104,71195.0,71194.0,2.14686623]
[1717777506067,1.28813104,71195.0,71194.0,2.1468663]
[1717777506290,1.28813104,71195.0,71194.0,2.06319511]
[1717777507064,1.28813104,71195.0,71194.0,2.06319414]
[1717777507291,1.28813104,71195.0,71194.0,2.1677613]
[1717777508309,1.28813104,71195.0,71194.0,2.16776159]
[1717777508510,1.28813104,71195.0,71194.0,2.1678473]
[1717777509364,1.28813104,71195.0,71194.0,2.06319443]
[1717777511415,1.28813104,71195.0,71194.0,2.08319443]
[1717777511614,1.28813104,71195.0,71194.0,2.06319443]
[1717777512030,1.28813104,71195.0,71194.0,2.08319443]
[1717777512522,1.28813104,71195.0,71194.0,2.08219443]
[1717777512726,1.28813104,71195.0,71194.0,2.08319443]
[1717777513965,1.28813104,71195.0,71194.0,2.14369443]
[1717777514086,1.28813104,71195.0,71194.0,2.14269443]
[1717777514284,1.28813104,71195.0,71194.0,2.14369443]
[1717777514777,1.28813104,71195.0,71194.0,2.24369443]
[1717777514975,1.28813104,71195.0,71194.0,2.24269443]
[1717777515380,1.28813104,71195.0,71194.0,2.24369443]
[1717777520754,1.28813104,71195.0,71194.0,2.16319443]
[1717777520862,1.28813104,71195.0,71194.0,2.22369443]
[1717777521072,1.28813104,71195.0,71194.0,2.24369443]
[1717777521415,1.28813104,71195.0,71194.0,2.22369443]
[1717777522612,1.28813104,71195.0,71194.0,2.22269443]
[1717777523130,1.28813104,71195.0,71194.0,2.24269443]
[1717777524211,1.28813104,71195.0,71194.0,2.24369443]
[1717777524965,1.28813104,71195.0,71194.0,2.0251105]
[1717777525185,1.28813104,71195.0,71194.0,2.22013722]
[1717777525592,1.28813104,71195.0,71194.0,2.22113722]
[1717777526377,1.28813104,71195.0,71194.0,1.92971947]
[1717777526578,1.28813104,71195.0,71194.0,2.22109373]
[1717777527337,1.28813104,71195.0,71194.0,2.220838]
[1717777529657,1.28813104,71195.0,71194.0,2.160338]
[1717777529872,1.28813104,71195.0,71194.0,2.220838]
[1717777530329,1.28813104,71195.0,71194.0,1.87938089]
[1717777530528,1.28813104,71195.0,71194.0,2.22056545]
[1717777531111,1.28813104,71195.0,71194.0,2.22055313]
[1717777531728,1.28813104,71195.0,71194.0,2.12055313]
[1717777532522,1.28813104,71195.0,71194.0,1.86155313]
[1717777532741,1.28813104,71195.0,71194.0,1.94285313]
[1717777532930,1.28813104,71195.0,71194.0,1.96285313]
[1717777537292,1.28813104,71195.0,71194.0,1.67147887]
[1717777537577,1.28813104,71195.0,71194.0,1.96285309]
[1717777540163,1.28813104,71195.0,71194.0,2.11295309]
[1717777540994,1.28313104,71195.0,71194.0,2.11295309]
[1717777545337,1.28313104,71195.0,71194.0,2.13490812]
[1717777546752,1.28313104,71195.0,71194.0,2.23490812]
[1717777546959,1.28313104,71195.0,71194.0,2.23556716]
[1717777547389,1.28313104,71195.0,71194.0,2.03941877]
[1717777547591,1.28313104,71195.0,71194.0,2.23556716]
[1717777548129,1.28313104,71195.0,71194.0,2.03941877]
[1717777548352,1.28313104,71195.0,71194.0,2.23556716]
[1717777548514,1.28313104,71195.0,71194.0,1.80801877]
[1717777549227,1.28313104,71195.0,71194.0,2.00416716]
[1717777549431,1.28313104,71195.0,71194.0,1.80801877]
[1717777549639,1.28313104,71195.0,71194.0,2.00416716]
[1717777549849,1.28313104,71195.0,71194.0,1.80801877]
[1717777550049,1.28313104,71195.0,71194.0,2.00416716]
[1717777550235,1.28313104,71195.0,71194.0,1.80801877]
[1717777550440,1.28313104,71195.0,71194.0,2.00416716]
[1717777550644,1.28399104,71195.0,71194.0,2.00416716]
[1717777552533,1.28399104,71195.0,71194.0,1.82366716]
[1717777552771,1.28479104,71195.0,71194.0,1.94936083]
[1717777552973,1.28399104,71195.0,71194.0,2.21241213]
[1717777553341,1.28399104,71195.0,71194.0,2.21436748]
[1717777553512,1.28399104,71195.0,71194.0,2.23436748]
[1717777554013,1.28399104,71195.0,71194.0,2.21436748]
[1717777554431,1.28399104,71195.0,71194.0,1.88416748]
[1717777554656,1.28399104,71195.0,71194.0,1.86221213]
[1717777556906,1.28399104,71195.0,71194.0,1.80171213]
[1717777557099,1.28399104,71195.0,71194.0,1.86221213]
[1717777560316,1.28399104,71195.0,71194.0,1.80171213]
[1717777560517,1.28399104,71195.0,71194.0,1.86221213]
[1717777562143,1.28399104,71195.0,71194.0,1.86222116]
[1717777565199,1.28399104,71195.0,71194.0,1.86131507]
[1717777566613,1.28399104,71195.0,71194.0,1.86085357]
[1717777571435,1.28399104,71195.0,71194.0,1.56947032]
[1717777571853,1.28399104,71195.0,71194.0,1.8608535]
[1717777575725,1.28399104,71195.0,71194.0,1.9378535]
[1717777575930,1.28399104,71195.0,71194.0,1.9578535]
[1717777577294,1.28399104,71195.0,71194.0,1.8973535]
[1717777577517,1.28399104,71195.0,71194.0,1.9578535]
[1717777578794,1.28399104,71195.0,71194.0,1.9568535]
[1717777580274,1.28399104,71195.0,71194.0,1.95697454]
[1717777580683,1.28399104,71195.0,71194.0,1.95797454]
[1717777580913,1.28399104,71195.0,71194.0,1.85097454]
[1717777581140,1.28479104,71195.0,71194.0,1.11135324]
[1717777581369,1.28479104,71195.0,71194.0,1.11035324]
[1717777581581,1.28479104,71195.0,71194.0,0.91645606]
[1717777582232,1.28479104,71195.0,71194.0,0.91545606]
[1717777582381,1.28479104,71195.0,71194.0,0.99928704]
[1717777582583,1.28479104,71195.0,71194.0,1.00028704]
[1717777582794,1.28479104,71195.0,71194.0,0.77076851]
[1717777582948,1.28479104,71195.0,71194.0,1.00031067]
[1717777583166,1.28479104,71195.0,71194.0,0.91647802]
[1717777583989,1.43920997,71195.0,71194.0,0.63555602]
[1717777584201,1.43920997,71195.0,71194.0,0.65653623]
[1717777584445,1.43920997,71195.0,71194.0,0.34317284]
[1717777585296,1.43920997,71195.0,71194.0,0.34417284]
[1717777585658,1.43920997,71195.0,71194.0,0.20371184]
[1717777587380,1.43920997,71195.0,71194.0,0.05800233]
[1717777587588,1.43920997,71195.0,71194.0,0.049946]
[1717777587993,1.43920997,71195.0,71194.0,0.050946]
[1717777588816,1.43920997,71195.0,71194.0,0.049946]
[1717777589241,1.43920997,71195.0,71194.0,0.050946]
[1717777589847,1.47856025,71195.0,71194.0,0.050946]
[1717777590052,1.81901925,71195.0,71194.0,0.050946]
[1717777590504,1.87951925,71195.0,71194.0,0.050946]
[1717777590755,1.95175162,71195.0,71194.0,0.050946]
[1717777590950,1.89125162,71195.0,71194.0,0.049946]
[1717777591164,1.87951925,71195.0,71194.0,0.049946]
[1717777591400,1.87951925,71195.0,71194.0,0.050946]
[1717777591857,1.87951925,71195.0,71194.0,0.049946]
[1717777592063,1.87951925,71195.0,71194.0,0.050946]
[1717777592938,1.81901925,71195.0,71194.0,0.050946]
[1717777593175,1.87951925,71195.0,71194.0,0.050946]
[1717777594408,1.81901925,71195.0,71194.0,0.050946]
[1717777594852,1.87951925,71195.0,71194.0,0.050946]
[1717777595053,2.26043725,71195.0,71194.0,0.050946]
[1717777597088,2.19993725,71195.0,71194.0,0.049946]
[1717777597307,2.26043725,71195.0,71194.0,0.049946]
[1717777597534,2.26043725,71195.0,71194.0,0.050946]
[1717777599061,2.19993725,71195.0,71194.0,0.050946]
[1717777599267,2.26043725,71195.0,71194.0,0.050946]
[1717777601556,2.19993725,71195.0,71194.0,0.050946]
[1717777601759,2.26043725,71195.0,71194.0,0.050946]
[1717777605598,2.36043725,71195.0,71194.0,0.050946]
[1717777606824,2.37761667,71195.0,71194.0,0.050946]
[1717777609187,2.4499745,71195.0,71194.0,0.050946]
[1717777610565,2.5499745,71195.0,71194.0,0.050946]
[1717777616764,2.4499745,71195.0,71194.0,0.050946]
[1717777625290,2.37761667,71195.0,71194.0,0.050946]
[1717777625511,2.44978848,71195.0,71194.0,0.050946]
[1717777626218,2.44979925,71195.0,71194.0,0.050946]
[1717777631559,2.51280013,71195.0,71194.0,0.050946]
[1717777632065,0.350473,71188.0,71167.0,0.06269769]
[1717777632257,0.350473,71188.0,71170.0,0.000946]
[1717777632258,1.40476093,71180.0,71170.0,0.000946]
[1717777632416,0.450506,71171.0,71170.0,0.000946]
[1717777632765,0.8826546,71171.0,71170.0,0.000946]
[1717777632976,0.94584195,71171.0,71170.0,0.000946]
[1717777633398,0.92475955,71171.0,71170.0,0.000946]
[1717777633598,0.92555955,71171.0,71170.0,0.000946]
[1717777633771,0.9834546,71171.0,71170.0,0.000946]
[1717777633948,1.2644676,71171.0,71170.0,0.000946]
[1717777634156,0.627604,71171.0,71170.0,0.000946]
[1717777634361,0.627604,71171.0,71170.0,0.163546]
[1717777634600,0.827604,71171.0,71170.0,0.163546]
[1717777634804,0.627604,71171.0,71170.0,0.17175378]
[1717777635101,0.627604,71171.0,71170.0,0.163546]
[1717777635102,0.73088584,71171.0,71170.0,0.163546]
[1717777635297,0.73137207,71171.0,71170.0,0.163546]
[1717777638274,0.52809023,71171.0,71170.0,0.163546]
[1717777638479,0.14441893,71171.0,71170.0,0.246646]
[1717777638686,0.14441893,71171.0,71170.0,0.25488251]
[1717777638823,0.14441893,71171.0,71170.0,0.40067076]
[1717777639951,0.14441893,71171.0,71170.0,0.25488251]
[1717777640152,0.14441893,71171.0,71170.0,0.40066652]
[1717777651317,0.14441893,71171.0,71170.0,0.41066652]
[1717777651483,0.14441893,71171.0,71170.0,0.40066652]
[1717777652663,0.14441893,71171.0,71170.0,0.41066652]
[1717777652910,0.14441893,71171.0,71170.0,0.40066652]
[1717777656428,0.14441893,71171.0,71170.0,0.55117452]
[1717777656644,0.01658651,71184.0,71178.0,0.2451]
[1717777656851,0.14441893,71183.0,71180.0,0.2351]
[1717777657059,0.14441893,71183.0,71181.0,0.14578401]
[1717777657277,0.14441893,71183.0,71182.0,0.14578401]
[1717777657671,0.14441893,71183.0,71182.0,0.15394504]
[1717777662542,0.15441893,71183.0,71182.0,0.15394504]
[1717777662794,0.14441893,71183.0,71182.0,0.15394504]
[1717777663773,0.14441893,71183.0,71182.0,0.15392587]
[1717777664543,0.15441893,71183.0,71182.0,0.15392587]
[1717777664959,0.14441893,71183.0,71182.0,0.15392587]
[1717777665165,0.15441893,71183.0,71182.0,0.15392587]
[1717777666186,0.14441893,71183.0,71182.0,0.15392587]
[1717777666398,0.15441893,71183.0,71182.0,0.15392587]
[1717777667438,0.17591082,71183.0,71182.0,0.15392587]
[1717777667645,0.15441893,71183.0,71182.0,0.15392587]
[1717777667863,0.14441893,71183.0,71182.0,0.15392587]
[1717777668123,0.14441893,71183.0,71182.0,0.39862587]
[1717777668951,0.14441893,71183.0,71182.0,0.53910987]
[1717777669186,0.14441893,71183.0,71182.0,0.53910286]
[1717777670007,0.14441893,71183.0,71182.0,0.54910286]
[1717777677258,1.28399104,71195.0,71190.0,0.140468]
[1717777677465,1.28399104,71195.0,71182.0,0.15391886]
[1717777677466,0.14441893,71194.0,71193.0,0.140463]
[1717777677687,0.14441893,71194.0,71193.0,0.368363]
[1717777677890,0.14441893,71194.0,71193.0,0.52424676]
[1717777680005,0.14441893,71194.0,71193.0,0.52422629]
[1717777686336,0.14441893,71194.0,71193.0,0.52422396]
[1717777689399,0.14441893,71194.0,71193.0,0.52422378]
[1717777692752,0.14441893,71194.0,71193.0,0.53422378]
[1717777695515,1.28399104,71195.0,71194.0,0.431383]
[1717777695740,1.42840997,71195.0,71194.0,0.81531785]
[1717777695950,1.42840997,71195.0,71194.0,0.82540881]
[1717777700394,1.42840997,71195.0,71194.0,0.82539267]
[1717777702732,1.42840997,71195.0,71194.0,0.37527067]
[1717777702937,1.63301397,71195.0,71194.0,0.29627067]
[1717777703367,1.48890997,71195.0,71194.0,0.29627067]
[1717777703570,1.49890997,71195.0,71194.0,0.29627067]
[1717777703778,1.48890997,71195.0,71194.0,0.29627067]
[1717777705191,1.48890997,71195.0,71194.0,0.28617971]
[1717777706095,1.42840997,71195.0,71194.0,0.28617971]
[1717777707703,1.42840997,71195.0,71194.0,0.2962607]
[1717777708506,1.42840997,71195.0,71194.0,0.28617971]
[1717777709578,1.42840997,71195.0,71194.0,0.29626048]
[1717777710555,1.42840997,71195.0,71194.0,0.52876048]
[1717777711006,1.42840997,71195.0,71194.0,0.53876048]
[1717777718597,1.42840997,71195.0,71194.0,0.39304177]
[1717777718780,1.42840997,71195.0,71194.0,0.53876678]
[1717777719708,1.28399104,71195.0,71194.0,0.53876678]
[1717777719902,1.28399104,71195.0,71194.0,1.18111078]
[1717777720287,1.28399104,71195.0,71194.0,1.6996437]
[1717777720489,1.28399104,71195.0,71194.0,1.65788316]
[1717777720711,1.28399104,71195.0,71194.0,1.67788316]
[1717777721523,1.28399104,71195.0,71194.0,1.7196437]
[1717777721723,1.28399104,71195.0,71194.0,1.67788316]
[1717777721943,1.28399104,71195.0,71194.0,1.74052397]
[1717777722380,1.28399104,71195.0,71194.0,1.67788316]
[1717777723603,1.28399104,71195.0,71194.0,1.67783922]
[1717777724349,1.28399104,71195.0,71194.0,1.7404624]
[1717777725398,1.28399104,71195.0,71194.0,1.6799624]
[1717777725615,1.28399104,71195.0,71194.0,1.7404624]
[1717777726274,1.28399104,71195.0,71194.0,1.6778385]
[1717777730251,1.28399104,71195.0,71194.0,1.67783914]
[1717777730458,1.28399104,71195.0,71194.0,1.71956924]
[1717777730872,1.28399104,71195.0,71194.0,1.51424426]
[1717777731112,1.28399104,71195.0,71194.0,1.71956924]
[1717777731290,1.28399104,71195.0,71194.0,1.5142413]
[1717777731513,1.28399104,71195.0,71194.0,1.71956628]
[1717777732280,1.28399104,71195.0,71194.0,1.5142413]
[1717777734200,1.28399104,71195.0,71194.0,1.71956628]
[1717777734613,1.28399104,71195.0,71194.0,1.5142413]
[1717777734815,1.28399104,71195.0,71194.0,1.51423615]
[1717777735355,1.28399104,71195.0,71194.0,1.71956113]
[1717777735585,1.28399104,71195.0,71194.0,1.51423615]
[1717777736475,1.28399104,71195.0,71194.0,1.71956113]
[1717777736836,1.28399104,71195.0,71194.0,1.51423615]
[1717777737455,1.28399104,71195.0,71194.0,1.71956113]
[1717777738064,1.28399104,71195.0,71194.0,1.69956113]
[1717777738279,1.28399104,71195.0,71194.0,1.12563913]
[1717777738485,1.28399104,71195.0,71194.0,0.95519216]
[1717777739059,1.28399104,71195.0,71194.0,0.66378878]
[1717777739395,1.28399104,71195.0,71194.0,0.87861541]
[1717777739580,1.28399104,71195.0,71194.0,1.41493741]
[1717777740021,1.28399104,71195.0,71194.0,1.66198438]
[1717777740775,1.28399104,71195.0,71194.0,1.67055855]
[1717777741940,1.28399104,71195.0,71194.0,1.67012065]
[1717777742643,1.28399104,71195.0,71194.0,1.73062065]
[1717777742854,1.28399104,71195.0,71194.0,1.8784006]
[1717777743131,1.28399104,71195.0,71194.0,2.3697812]
[1717777743363,1.28399104,71195.0,71194.0,2.27406975]
[1717777743575,1.28399104,71195.0,71194.0,2.3697812]
[1717777743768,1.28399104,71195.0,71194.0,2.1697812]
[1717777744344,1.28399104,71195.0,71194.0,2.27399373]
[1717777744657,1.28399104,71195.0,71194.0,2.1092812]
[1717777744840,1.28399104,71195.0,71194.0,2.1697812]
[1717777745230,1.28399104,71195.0,71194.0,2.25315763]
[1717777745853,1.28399104,71195.0,71194.0,2.19265763]
[1717777746051,1.28399104,71195.0,71194.0,2.25315763]
[1717777746395,1.28399104,71195.0,71194.0,2.25367833]
[1717777746919,1.28399104,71195.0,71194.0,2.19317833]
[1717777747282,1.28399104,71195.0,71194.0,1.89395653]
[1717777747575,1.28399104,71195.0,71194.0,2.25382507]
[1717777748667,1.28399104,71195.0,71194.0,1.81240307]
[1717777748875,1.28399104,71195.0,71194.0,1.78953491]
[1717777749324,1.28399104,71195.0,71194.0,1.76953491]
[1717777749463,1.28399104,71195.0,71194.0,1.70903491]
[1717777749683,1.28399104,71195.0,71194.0,1.75070876]
[1717777749893,1.28399104,71195.0,71194.0,1.70903491]
[1717777750121,1.28399104,71195.0,71194.0,1.55113491]
[1717777750317,1.28399104,71195.0,71194.0,1.57580876]
[1717777750518,1.28399104,71195.0,71194.0,1.53413491]
[1717777751343,1.28399104,71195.0,71194.0,1.47363491]
[1717777751583,1.28399104,71195.0,71194.0,1.53413491]
[1717777751719,1.28399104,71195.0,71194.0,1.19271291]
[1717777751928,1.28399104,71195.0,71194.0,1.18271291]
[1717777752130,1.28399104,71195.0,71194.0,1.08271291]
[1717777753475,1.28399104,71195.0,71194.0,0.5876112]
[1717777753935,1.28399104,71195.0,71194.0,0.58763974]
[1717777755023,1.42840997,71195.0,71194.0,0.58763974]
[1717777755232,1.42920997,71195.0,71194.0,0.58763974]
[1717777755836,1.42920997,71195.0,71194.0,0.59763974]
[1717777756277,1.42920997,71195.0,71194.0,0.58763974]
[1717777756451,1.42920997,71195.0,71194.0,0.29625914]
[1717777757051,1.42920997,71195.0,71194.0,0.28617837]
[1717777757262,1.42920997,71195.0,71194.0,0.2976864]
[1717777759042,1.43920997,71195.0,71194.0,0.2976864]
[1717777759243,1.42920997,71195.0,71194.0,0.28617837]
[1717777760578,1.42920997,71195.0,71194.0,0.29582351]
[1717777760729,1.43920997,71195.0,71194.0,0.29582351]
[1717777761171,1.42920997,71195.0,71194.0,0.29582351]
[1717777761390,1.43920997,71195.0,71194.0,0.29582351]
[1717777762742,1.42920997,71195.0,71194.0,0.29582351]
[1717777764053,1.43920997,71195.0,71194.0,0.28617837]
[1717777764257,1.43920997,71195.0,71194.0,0.29582596]
[1717777764875,1.43920997,71195.0,71194.0,0.29584284]
[1717777768577,1.43920997,71195.0,71194.0,0.15538184]
[1717777769025,1.43920997,71195.0,71194.0,0.14573425]
[1717777769434,1.49970997,71195.0,71194.0,0.14573425]
[1717777770291,1.49970997,71195.0,71194.0,0.14573992]
[1717777770509,1.48970997,71195.0,71194.0,0.14573992]
[1717777770727,1.49970997,71195.0,71194.0,0.14573992]
[1717777772450,1.48970997,71195.0,71194.0,0.14573992]
[1717777774334,1.42920997,71195.0,71194.0,0.14573992]
[1717777775128,1.42920997,71195.0,71194.0,0.14574006]
[1717777775342,1.48970997,71195.0,71194.0,0.14574006]
[1717777776882,1.48970997,71195.0,71194.0,0.15539034]
[1717777779854,1.48970997,71195.0,71194.0,0.00965028]
[1717777780097,1.48970997,71195.0,71191.0,0.140466]
[1717777780360,0.14441893,71194.0,71191.0,0.140466]
[1717777781462,0.14441893,71194.0,71192.0,0.140465]
[1717777784138,0.14441893,71194.0,71192.0,0.28620407]
[1717777785088,0.14441893,71194.0,71192.0,0.29620407]
[1717777785507,0.14441893,71194.0,71192.0,0.28620407]
[1717777786115,0.14441893,71194.0,71192.0,0.140465]
[1717777788291,0.14441893,71194.0,71193.0,0.00965067]
[1717777790364,0.15441893,71194.0,71193.0,0.00965067]
[1717777790609,0.15441893,71194.0,71192.0,0.140465]
[1717777790802,0.14441893,71194.0,71192.0,0.140465]
[1717777791004,0.0605,71193.0,71192.0,0.140465]
[1717777791209,0.20491893,71193.0,71192.0,0.140465]
[1717777794435,0.14441893,71193.0,71192.0,0.51446523]
[1717777798214,0.14441893,71193.0,71192.0,0.37400023]
[1717777798215,0.15521893,71193.0,71192.0,0.37400023]
[1717777798417,0.15521893,71193.0,71192.0,0.37401215]
[1717777798840,0.15521893,71193.0,71192.0,0.37401331]
[1717777799307,0.14521893,71193.0,71192.0,0.37401331]
[1717777799516,0.15521893,71193.0,71192.0,0.39496348]
[1717777799697,0.14521893,71193.0,71192.0,0.39496348]
[1717777801008,0.14521893,71193.0,71192.0,0.39496017]
[1717777801202,0.14521893,71193.0,71192.0,0.37401308]
[1717777801934,0.14441893,71193.0,71192.0,0.52447808]
[1717777802141,1.28399104,71195.0,71192.0,0.52447808]
[1717777802142,1.28399104,71195.0,71194.0,0.693483]
[1717777802359,1.28399104,71195.0,71194.0,1.25629178]
[1717777802565,1.28399104,71195.0,71194.0,2.01846122]
[1717777803848,1.28399104,71195.0,71194.0,1.76637552]
[1717777807352,1.03409104,71195.0,71194.0,2.12688851]
[1717777808441,1.03409104,71195.0,71194.0,2.23098093]
[1717777808884,1.03409104,71195.0,71194.0,2.51190293]
[1717777809293,1.03409104,71195.0,71194.0,2.40781051]
[1717777809496,1.03409104,71195.0,71194.0,2.20781051]
[1717777809960,1.03409104,71195.0,71194.0,2.31190293]
[1717777810441,1.03409104,71195.0,71194.0,2.20781051]
[1717777811169,0.73324504,71195.0,71194.0,2.84632186]
[1717777811390,0.73324504,71195.0,71194.0,2.74222944]
[1717777812098,0.73324504,71195.0,71194.0,2.68172944]
[1717777812326,0.73324504,71195.0,71194.0,2.96056623]
[1717777812764,0.73324504,71195.0,71194.0,2.74195119]
[1717777813219,0.73324504,71195.0,71194.0,2.58542825]
[1717777813447,0.73324504,71195.0,71194.0,2.38071249]
[1717777813670,0.73324504,71195.0,71194.0,2.29753226]
[1717777813886,0.73324504,71195.0,71194.0,2.12061559]
[1717777814105,0.73324504,71195.0,71194.0,2.06013357]
[1717777814327,0.73324504,71195.0,71194.0,2.12063357]
[1717777814613,0.73324504,71195.0,71194.0,2.5650525]
[1717777814857,0.73324504,71195.0,71194.0,2.82517671]
[1717777815310,0.73324504,71195.0,71194.0,2.88763881]
[1717777815533,0.73324504,71195.0,71194.0,2.69097534]
[1717777815748,0.73324504,71195.0,71194.0,2.75147534]
[1717777815966,0.73324504,71195.0,71194.0,2.81384125]
[1717777816374,0.73324504,71195.0,71194.0,2.75147534]
[1717777816701,0.73324504,71195.0,71194.0,2.8554564]
[1717777817353,0.73324504,71195.0,71194.0,2.75147534]
[1717777819027,0.73324504,71195.0,71194.0,2.55147534]
[1717777821268,0.73324504,71195.0,71194.0,2.49097534]
[1717777821493,0.73324504,71195.0,71194.0,2.55147534]
[1717777824205,0.73324504,71195.0,71194.0,2.55146867]
[1717777824898,0.70390316,71195.0,71194.0,3.13239067]
[1717777825143,1.6e-07,71199.0,71198.0,0.570453]
[1717777825346,1.6e-07,71199.0,71198.0,2.17196458]
[1717777825694,1.6e-07,71199.0,71198.0,2.74373592]
[1717777827327,1.6e-07,71199.0,71198.0,2.54373592]
[1717777827533,1.6e-07,71199.0,71198.0,2.74373592]
[1717777828111,1.6e-07,71199.0,71198.0,3.02464192]
[1717777829108,1.6e-07,71199.0,71198.0,2.94155362]
[1717777829311,1.6e-07,71199.0,71198.0,3.02465323]
[1717777829515,1.6e-07,71199.0,71198.0,2.82465323]
[1717777829765,1.6e-07,71199.0,71198.0,2.76415323]
[1717777829979,1.6e-07,71199.0,71198.0,2.82465323]
[1717777830182,1.6e-07,71199.0,71198.0,2.05842203]
[1717777830381,1.6e-07,71199.0,71198.0,2.16172203]
[1717777830585,1.6e-07,71199.0,71198.0,2.07862869]